[Event "AUT Bundesliga Women 2021-22"]
[Site "Austria"]
[Date "2022.04.22"]
[Round "8.17"]
[White "Matnadze, Ana"]
[Black "Mihok-Juhasz, Barbara"]
[Result "1/2-1/2"]
[ECO "E62"]
[WhiteElo "2407"]
[BlackElo "2207"]
[Annotator "TA"]
[PlyCount "113"]
[EventDate "2021.11.06"]
[EventType "team-tourn"]
[EventCountry "AUT"]
[SourceTitle "playchess.com"]
[Source "ChessBase"]
[SourceQuality "1"]
[TimeControl "40/5400+30:1800+30"]

{[%evp 19,113,52,50,56,52,58,61,12,14,10,54,57,59,58,58,22,27,21,33,0,22,17,23,0,0,0,30,29,33,27,58,51,75,22,56,25,71,59,58,30,66,57,72,35,28,33,53,46,54,49,56,52,59,49,50,17,72,72,72,50,81,72,81,81,81,74,74,47,33,22,22,7,7,7,7,7,22,0,12,0,0,0,40,0,2,0,0,0,15,7,7,0,45,0,21,0]} 1. d4 {[%emt 0:00:20]} Nf6 {[%emt 0:00:00]} 2. Nf3 {[%emt 0:00:06]} g6 {[%emt 0:00:24]} 3. g3 {[%emt 0:00:14]} Bg7 {[%emt 0:00:06]} 4. Bg2 {[%emt 0:00:09]} O-O {[%emt 0:00:13]} 5. O-O {[%emt 0:00:06]} d6 {[%emt 0:00:08]} 6. c4 {[%emt 0:00:12]} Nc6 {[%emt 0:00:17]} 7. Nc3 {[%emt 0:00:09]} e5 {[%emt 0:00:06]} 8. dxe5 {[%emt 0:02:54]} dxe5 {[%emt 0:00:09]} 9. Bg5 {[%emt 0:00:15]} h6 {[%emt 0:00:09]} 10. Qxd8 {[%emt 0:00:23]} Rxd8 {[%emt 0:00:06]} 11. Bxf6 {[%emt 0:00:05] E62: King's Indian: Fianchetto: 6...c6 and Panno Variation (6...Nc6) without ...a6.} Bxf6 {[%emt 0:00:07]} 12. Nd5 {[%emt 0:00:04]} Kg7 {[%emt 0:00:06]} 13. Nd2 {[%emt 0:03:56] [#] White is more active.} (13. Nxc7 $14 Rb8 14. e4) 13... Be7 $146 {[%emt 0:01:27]} ({Predecessor:} 13... Rd7 14. Ne4 Be7 15. Nxe7 Rxe7 16. Nc5 Nd4 17. e3 Ne6 18. Nxb7 Bxb7 19. Bxb7 Rb8 {½-½ (38) Maze,S (2539)-Theodorou,N (2584) Paleochora 2021}) 14. Nb3 {[%emt 0:02:07]} Bf8 {[%emt 0:19:48]} 15. Nxc7 {[%emt 0:02:42]} Rb8 {[%emt 0:00:04]} 16. Rfd1 {[%emt 0:05:51]} Bg4 {[%emt 0:05:57]} 17. f3 {[%emt 0:01:25] [#] aiming for Rxd8.} (17. Bf3 Bxf3 18. exf3) 17... Bf5 {[%emt 0:02:55]} 18. e4 {[%emt 0:00:43]} Be6 {[%emt 0:00:14]} 19. Nd5 {[%emt 0:04:01]} a5 {[%emt 0:20:11]} 20. a4 {[%emt 0:02:12]} b6 {[%emt 0:11:51]} 21. f4 {[%emt 0:06:06]} Bc5+ {[%emt 0:17:32]} 22. Kh1 {[%emt 0:00:35]} Nd4 {[%emt 0:12:33]} 23. Nxd4 {[%emt 0:01:59]} Bxd4 {[%emt 0:00:06] A strong pair of Bishops.} 24. Rab1 {[%emt 0:03:27]} f6 {[%emt 0:01:31]} 25. b3 {[%emt 0:02:42][%cal Of4f5]} Bc5 {[%emt 0:02:55] [#]} 26. Bf3 {[%emt 0:04:47]} (26. f5 $1 $16 {[%cal Rf5e6]} Bxd5 27. exd5) 26... Rd6 {[%emt 0:02:24]} 27. Nc7 {[%emt 0:02:35] Strongly threatening Rxd6.} Bf7 {[%emt 0:00:50]} (27... Bh3 $11 {deserves consideration.}) 28. Nb5 {[%emt 0:01:58]} Rdd8 {[%emt 0:00:19]} 29. Kg2 {[%emt 0:00:24]} Kf8 {[%emt 0:01:14]} 30. h4 {[%emt 0:00:24]} h5 {[%emt 0:00:53]} 31. fxe5 {[%emt 0:05:02]} fxe5 {[%emt 0:00:05]} 32. g4 {[%emt 0:00:45]} hxg4 {[%emt 0:00:43]} 33. Bxg4 {[%emt 0:00:02]} Kg7 {[%emt 0:00:21]} 34. Nc7 {[%emt 0:01:37]} Bd6 {[%emt 0:00:59]} 35. Nd5 {[%emt 0:00:51]} Bc5 {[%emt 0:00:09]} 36. Rd3 {[%emt 0:01:08]} Bxd5 {[%emt 0:00:37]} 37. Rxd5 {[%emt 0:04:46]} Rxd5 {[%emt 0:00:38]} (37... Rf8 $11 {remains equal.}) 38. cxd5 $14 {[%emt 0:01:20][%mdl 4096] Endgame KRB-KRB} Rf8 {[%emt 0:00:25]} 39. Bf3 {[%emt 0:00:56]} Rf6 {[%emt 0:00:28]} 40. Rc1 {[%emt 0:01:00]} Kf8 {[%emt 0:00:37]} 41. Rh1 {[%emt 0:31:20]} Bd4 {[%emt 0:10:51]} 42. Rh3 {[%emt 0:00:00]} Ke7 {[%emt 0:00:38]} 43. Kf1 {[%emt 0:00:00]} Kd6 {[%emt 0:05:02]} 44. Ke2 {[%emt 0:00:00]} Kc5 {[%emt 0:00:32]} 45. Kd2 {[%emt 0:11:20]} Kb4 {[%emt 0:00:10]} 46. Be2 {[%emt 0:00:15]} Bc5 $1 {[%emt 0:06:31]} (46... Rf2 $2 47. d6 $18) 47. Rd3 {[%emt 0:04:07]} Bd4 {[%emt 0:04:06]} 48. Rh3 {[%emt 0:15:55]} Bc5 {[%emt 0:00:14]} (48... Rf2 $2 49. d6 $18) 49. h5 {[%emt 0:00:34]} gxh5 {[%emt 0:00:05]} 50. Rxh5 {[%emt 0:00:11]} Bd4 {[%emt 0:01:07]} 51. Rh3 {[%emt 0:00:49]} Bc5 {[%emt 0:00:19]} 52. Rd3 {[%emt 0:01:33]} Rh6 {[%emt 0:00:40]} 53. Rf3 {[%emt 0:01:34]} Bd4 {[%emt 0:00:34]} 54. Rg3 {[%emt 0:01:21]} Bc5 {[%emt 0:00:32]} 55. Rd3 {[%emt 0:00:10]} Bd4 {[%emt 0:00:49]} 56. Rg3 {[%emt 0:00:25]} Bc5 {[%emt 0:00:12]} 57. Rd3 {[%emt 0:00:06] Weighted Error Value: White=0.13 (very precise) /Black=0.12 (very precise)} 1/2-1/2

[Event "AUT Bundesliga Women 2021-22"]
[Site "Austria"]
[Date "2022.04.22"]
[Round "8.18"]
[White "Miturova, Magdalena"]
[Black "Injac, Teodora"]
[Result "1/2-1/2"]
[ECO "A05"]
[WhiteElo "2210"]
[BlackElo "2406"]
[Annotator "TA"]
[PlyCount "94"]
[EventDate "2021.11.06"]
[EventType "team-tourn"]
[EventCountry "AUT"]
[SourceTitle "playchess.com"]
[Source "ChessBase"]
[SourceQuality "1"]
[TimeControl "40/5400+30:1800+30"]

{[%evp 9,94,27,19,8,24,1,2,-10,-4,-1,2,-11,-8,-12,0,-7,0,0,0,0,0,0,0,0,52,0,0,0,0,0,0,-34,0,-34,-39,-36,-40,-47,-39,-65,-56,-71,-31,-42,-35,-42,0,0,0,0,6,7,7,0,0,4,105,0,19,18,17,24,34,21,58,62,64,43,193,191,215,215,278,202,320,320,287,305,344,248,226,0,328,0,201,0,302]} 1. Nf3 {[%emt 0:00:05]} Nf6 {[%emt 0:01:36]} 2. g3 {[%emt 0:00:11]} g6 {[%emt 0:00:20]} 3. b3 {[%emt 0:00:06]} Bg7 {[%emt 0:00:18]} 4. Bb2 {[%emt 0:00:06]} d6 {[%emt 0:02:25]} 5. d4 {[%emt 0:00:07]} b5 {[%emt 0:05:53]} 6. Bg2 {[%emt 0:02:22][%cal Of3e5] A49: 1 d4 Nf6 2 Nf3 g6 3 g3: Anti-King's Indian systems.} Bb7 {[%emt 0:00:12] [#]} 7. c4 $146 {[%emt 0:01:05]} (7. Qd3 $5 {[%cal Rd3b5]}) ({Predecessor:} 7. O-O O-O 8. Re1 Nbd7 9. Nbd2 c5 10. c4 bxc4 11. Nxc4 Rc8 12. Rc1 cxd4 13. Bxd4 {1-0 (49) Wojtaszek,R (2686)-Demchenko,A (2654) Warsaw 2021}) 7... bxc4 {[%emt 0:02:23]} 8. bxc4 {[%emt 0:00:08]} Nbd7 {[%emt 0:00:35]} 9. O-O {[%emt 0:03:34]} Rb8 {[%emt 0:02:54] Threatens to win with ...Bxf3.} 10. Qc1 {[%emt 0:03:46]} O-O {[%emt 0:02:29]} 11. Nbd2 {[%emt 0:04:28]} Ne4 {[%emt 0:08:47]} 12. Nb3 {[%emt 0:05:06]} c5 {[%emt 0:16:14]} 13. d5 {[%emt 0:00:39]} e6 {[%emt 0:04:47]} 14. Bxg7 {[%emt 0:16:15]} Kxg7 {[%emt 0:00:02]} 15. Nfd2 {[%emt 0:01:26]} exd5 {[%emt 0:07:11]} 16. cxd5 {[%emt 0:00:13]} Nef6 {[%emt 0:02:54]} (16... Nxd2 $11 17. Qxd2 Ba6) 17. e4 {[%emt 0:01:36]} (17. Qc3 $1 $14) 17... Ba6 $11 {[%emt 0:02:43]} 18. Re1 {[%emt 0:00:48]} Qb6 {[%emt 0:05:29]} 19. Qc3 {[%emt 0:07:49]} Qb4 $36 {[%emt 0:05:17][%mdl 2048] Black has good play.} 20. Rac1 {[%emt 0:00:51]} Rfe8 {[%emt 0:01:43]} 21. Re3 {[%emt 0:08:44]} Qxc3 {[%emt 0:05:45]} 22. Rexc3 {[%emt 0:01:49]} Rb4 {[%emt 0:00:45]} 23. f3 {[%emt 0:06:17]} Ra4 {[%emt 0:01:54]} 24. R1c2 {[%emt 0:00:30]} Nb6 {[%emt 0:03:00] Prevents Nc4.} 25. Nc1 {[%emt 0:15:32][%cal Bb3c1,Bc1e2,Be2c3,Bc3b5][%mdl 32]} h5 {[%emt 0:05:42]} 26. Rb3 {[%emt 0:03:13]} Nfd7 {[%emt 0:03:05]} 27. Bf1 {[%emt 0:03:25]} Bxf1 {[%emt 0:00:54]} (27... Kh6 $5 {[%cal Rf7f5]}) 28. Kxf1 {[%emt 0:01:41]} f5 {[%emt 0:00:45]} 29. Ne2 {[%emt 0:03:53]} Nf6 {[%emt 0:03:21][%cal Rf5e4]} 30. Nc3 {[%emt 0:01:20]} Rb4 {[%emt 0:02:00]} 31. Rxb4 {[%emt 0:02:46]} cxb4 {[%emt 0:00:02]} 32. Nb5 {[%emt 0:00:15][%csl LRa7,LRd6]} Rc8 {[%emt 0:02:44]} (32... fxe4 $11 33. Nxd6 (33. Rc7+ Kf8 $11) 33... Rf8) 33. Rb2 {[%emt 0:01:10]} (33. Rc6 $16) 33... fxe4 {[%emt 0:00:24]} 34. fxe4 {[%emt 0:01:16]} Rc1+ {[%emt 0:01:22]} 35. Ke2 {[%emt 0:02:04]} a5 {[%emt 0:00:27]} 36. Nxd6 {[%emt 0:00:15] Strongly threatening Nb3.} Na4 {[%emt 0:00:30] [#]} 37. Nb3 $1 {[%emt 0:01:22][%csl LRa5,LRc1]} Rh1 {[%emt 0:01:24]} 38. Rd2 {[%emt 0:00:44] Kd3 is the strong threat.} Nc3+ {[%emt 0:00:35] [#]} (38... Rxh2+ $14 39. Kd3 Rxd2+ 40. Nxd2 Nc3) 39. Kd3 $1 $18 {[%emt 0:00:23]} a4 {[%emt 0:00:34] [#]} 40. Nc5 {[%emt 0:01:43]} Ng4 {[%emt 0:00:30]} 41. Rb2 {[%emt 0:09:22]} a3 {[%emt 0:25:36]} (41... Kf6 {is a better defense.} 42. Rxb4 Nxa2) 42. Rxb4 {[%emt 0:01:10]} Nxa2 {[%emt 0:00:04]} 43. Rb7+ {[%emt 0:02:22]} Kg8 {[%emt 0:00:54]} 44. Rb8+ {[%emt 0:09:25]} Kh7 {[%emt 0:00:08]} 45. Rb7+ {[%emt 0:00:59]} (45. Ra8 $142) 45... Kg8 {[%emt 0:00:53]} 46. Rb8+ {[%emt 0:01:32]} Kh7 $1 {[%emt 0:00:03]} 47. Rb7+ {[%emt 0:00:11]} (47. Ra8 $142) 47... Kg8 {[%emt 0:00:07][%mdl 32768] Weighted Error Value: White=0.33/Black=0.21 (precise) . An unexpected result.} 1/2-1/2

[Event "AUT Bundesliga Women 2021-22"]
[Site "Austria"]
[Date "2022.04.22"]
[Round "8.19"]
[White "Worek, Joanna"]
[Black "Cvitan, Ena"]
[Result "0-1"]
[ECO "B12"]
[WhiteElo "2277"]
[BlackElo "2238"]
[Annotator "TA"]
[PlyCount "86"]
[EventDate "2021.11.06"]
[EventType "team-tourn"]
[EventCountry "AUT"]
[SourceTitle "playchess.com"]
[Source "ChessBase"]
[SourceQuality "1"]
[TimeControl "40/5400+30:1800+30"]

{[%evp 9,86,3,13,0,0,0,6,12,31,6,118,-18,-12,-10,-22,-7,-11,0,42,-66,-73,-151,-129,-178,-125,-226,-194,-252,-239,-247,-216,-235,-216,-231,-238,-283,-276,-316,-314,-321,-310,-339,-337,-402,-319,-360,-328,-464,-383,-448,0,-458,0,-446,-424,-416,-358,-453,-513,-516,-497,-469,-322,-446,-440,-1886,-630,-576,-387,-394,-379,-1060,-1047,-1443,-1407,-29991,-29992,-29993,-29994]} 1. e4 {[%emt 0:00:03]} c6 {[%emt 0:00:30]} 2. d4 {[%emt 0:00:35]} d5 {[%emt 0:00:07]} 3. e5 {[%emt 0:00:24]} Bf5 {[%emt 0:00:45]} 4. c4 {[%emt 0:00:40]} e6 {[%emt 0:05:54]} 5. Nc3 {[%emt 0:00:15]} Ne7 {[%emt 0:04:24][%cal Oc6c5]} 6. h3 {[%emt 0:01:19] B12: Caro-Kann: Advance Variation.} Nd7 {[%emt 0:03:25]} 7. Nf3 {[%emt 0:01:01]} h6 {[%emt 0:02:22]} 8. b3 {[%emt 0:04:59] [#] The position is equal.} Be4 $146 {[%emt 0:11:54]} ({Predecessor:} 8... Ng6 9. a3 dxc4 10. bxc4 c5 11. g4 cxd4 12. Nxd4 Bxg4 13. hxg4 Ndxe5 14. Be2 Bc5 {1-0 (61) Carlsen,M (2862)-Vachier Lagrave,M (2784) Chess.com INT 2020}) 9. Bd3 {[%emt 0:09:58]} Qa5 {[%emt 0:20:37]} (9... Bxf3 $11 {remains equal.} 10. Qxf3 dxc4 11. bxc4 c5 12. Qxb7 (12. Nb5 Nc6 $15) 12... Rb8 13. Qxa7 Nc8) 10. Bb2 {[%emt 0:18:24]} (10. Bxe4 $16 {[%cal Oc1d2] Hoping for Bd2!} dxe4 11. Bd2 $1 exf3 12. Ne4) 10... Nf5 $11 {[%emt 0:03:33] Strongly threatening ...Ba3.} 11. Bxe4 {[%emt 0:07:52]} dxe4 {[%emt 0:00:25]} 12. g4 {[%emt 0:02:51]} exf3 {[%emt 0:10:27]} 13. gxf5 {[%emt 0:00:05]} Nxe5 {[%emt 0:00:28][%cal Bd7e5,Be5g6,Bg6h4][%mdl 32]} ({But not} 13... exf5 14. Qxf3 g6 15. O-O-O $16) (13... Ba3 $5 {[%cal Ra3b2]} 14. Bxa3 Qxc3+ 15. Kf1 c5 $11) 14. fxe6 {[%emt 0:02:22]} ({White should play} 14. Qc2 $14) 14... O-O-O $1 $15 {[%emt 0:01:23] Threatens to win with ...Ba3. Black is more active.} 15. Kf1 {[%emt 0:10:10] Black converts the advantage convincingly.} ({Wrong is} 15. exf7 $2 Ba3 16. Bxa3 (16. b4 $2 Qxb4 17. Bxa3 Qxc3+ 18. Kf1 Rxd4 $19) 16... Qxc3+ 17. Kf1 Nxf7 $19) (15. Qd2 $142) 15... fxe6 {[%emt 0:04:08]} 16. Ne4 {[%emt 0:03:02]} (16. Na4 $17 {was called for.}) 16... Be7 {[%emt 0:04:39]} (16... Ba3 $19 17. Bc3 Bb4) 17. Qc2 {[%emt 0:03:59]} (17. Rg1 $17 g5 18. Rg3) 17... Ng6 $1 $19 {[%emt 0:04:53]} 18. Ng3 {[%emt 0:08:11]} (18. Nd2 $142) 18... Nh4 {[%emt 0:04:55]} 19. Bc3 {[%emt 0:03:23]} Bb4 {[%emt 0:04:04]} 20. Bxb4 {[%emt 0:06:37]} Qxb4 {[%emt 0:00:02]} 21. Qe4 {[%emt 0:00:07]} g5 {[%emt 0:02:58]} 22. Rd1 {[%emt 0:02:04]} Qd6 {[%emt 0:01:52]} 23. Qe3 {[%emt 0:00:55]} Rhf8 {[%emt 0:03:51]} 24. Ne4 {[%emt 0:06:04]} Qe7 {[%emt 0:01:13]} 25. Nc3 {[%emt 0:02:31]} Ng2 {[%emt 0:00:21]} 26. Qd3 {[%emt 0:01:34]} Qf7 {[%emt 0:02:48]} 27. b4 {[%emt 0:00:38]} Qf5 {[%emt 0:00:46]} 28. Qd2 {[%emt 0:00:36]} (28. a3 $142) 28... Qf4 {[%emt 0:00:10]} 29. Qd3 {[%emt 0:00:35]} Qf5 {[%emt 0:00:32]} 30. Qd2 $1 {[%emt 0:00:05]} Qf4 {[%emt 0:00:04]} 31. Qd3 $1 {[%emt 0:00:06]} Rd7 {[%emt 0:00:44] ...Rfd8 is the strong threat.} 32. b5 {[%emt 0:00:36]} cxb5 {[%emt 0:00:04]} 33. Nxb5 {[%emt 0:00:30]} a6 {[%emt 0:00:28]} 34. Nc3 {[%emt 0:00:11]} Rfd8 {[%emt 0:00:39][%cal Rd7d4]} 35. d5 {[%emt 0:00:21]} Kb8 {[%emt 0:00:47]} 36. Rb1 {[%emt 0:04:10]} Rc7 {[%emt 0:00:45]} 37. Ne4 {[%emt 0:00:17] [#]} (37. Ne2 $142 Qxc4 38. Qxc4 Rxc4 39. dxe6) 37... exd5 {[%emt 0:00:18]} (37... Rxd5 $142 $3 {[%mdl 512]} 38. Qb3 {[#]} Rb5 $3 {[%mdl 512]} 39. cxb5 Rc1+ 40. Qd1 Rxd1+ 41. Rxd1 Qxe4) 38. Nd2 {[%emt 0:00:23]} Rdc8 {[%emt 0:01:06]} 39. Qxd5 {[%emt 0:00:21]} Nh4 {[%emt 0:01:04]} 40. Rg1 $2 {[%emt 0:01:25]} (40. Ne4 Nf5 41. c5) 40... Qh2 {[%emt 0:00:24] White must now prevent ...Re8.} 41. Qe6 {[%emt 0:05:21] Prevents Re8.} Rd8 {[%emt 0:07:26]} 42. Ne4 {[%emt 0:18:54]} Rcd7 {[%emt 0:01:13]} 43. Nc3 {[%emt 0:00:26]} Rd2 {[%emt 0:05:48] Weighted Error Value: White=0.78/Black=0.50} 0-1

[Event "AUT Bundesliga Women 2021-22"]
[Site "Austria"]
[Date "2022.04.22"]
[Round "8.20"]
[White "Exler, Veronika"]
[Black "Theissl Pokorna, Regina"]
[Result "0-1"]
[ECO "B22"]
[WhiteElo "2140"]
[BlackElo "2298"]
[Annotator "TA"]
[PlyCount "104"]
[EventDate "2021.11.06"]
[EventType "team-tourn"]
[EventCountry "AUT"]
[SourceTitle "playchess.com"]
[Source "ChessBase"]
[SourceQuality "1"]
[TimeControl "40/5400+30:1800+30"]

{[%evp 24,104,0,0,0,0,0,0,-3,-10,0,0,0,0,0,0,0,0,0,0,0,-11,-20,-26,-28,-25,-34,-24,-22,-21,-6,-9,-11,-45,-57,-56,0,0,0,-17,0,-5,0,-30,-36,-68,9,0,0,-35,-28,-46,-68,-51,-54,-72,0,-345,-33,-33,-33,-42,-38,-12839,-66,-62,-62,-62,-62,-66,-67,-68,-102,-2775,-2499,-1855,-1637,-12833,-12834,-12833,-12649,-2722,-2236]} 1. e4 {[%emt 0:00:01]} c5 {[%emt 0:00:09]} 2. c3 {[%emt 0:00:03]} Nf6 {[%emt 0:00:08]} 3. e5 {[%emt 0:00:10]} Nd5 {[%emt 0:00:23]} 4. d4 {[%emt 0:00:04]} cxd4 {[%emt 0:00:12]} 5. Nf3 {[%emt 0:00:06]} e6 {[%emt 0:00:19]} 6. cxd4 {[%emt 0:00:06]} d6 {[%emt 0:00:08]} 7. Bc4 {[%emt 0:02:09]} Nc6 {[%emt 0:00:15]} 8. O-O {[%emt 0:00:29]} Be7 {[%emt 0:00:09]} 9. Qe2 {[%emt 0:00:31]} O-O {[%emt 0:00:09]} 10. Nc3 {[%emt 0:00:14]} dxe5 {[%emt 0:00:28]} 11. dxe5 {[%emt 0:00:22]} Nxc3 {[%emt 0:00:07]} 12. bxc3 {[%emt 0:00:03]} b6 {[%emt 0:00:13]} 13. Qe4 {[%emt 0:02:19] [#] And now Bd3 would win.} Qc7 {[%emt 0:00:17] B22: Sicilian: 2 c3.} 14. Bd3 {[%emt 0:21:57][%csl Gd3][%cal Re4h7]} g6 {[%emt 0:00:37]} 15. Bh6 {[%emt 0:00:25]} Rd8 {[%emt 0:00:19] The position is equal.} 16. Rad1 {[%emt 0:00:15]} Bb7 {[%emt 0:01:37][%cal Oc6b4]} 17. Qf4 {[%emt 0:00:20] Inhibits Nb4.} Rd5 {[%emt 0:05:30][%cal Rc6e5]} 18. Be4 {[%emt 0:22:11]} Rxd1 {[%emt 0:04:07]} 19. Rxd1 {[%emt 0:01:03]} Rd8 {[%emt 0:00:33]} 20. Rxd8+ {[%emt 0:07:09]} Nxd8 {[%emt 0:00:06][%cal Bc6d8,Bd8b7,Bb7c5][%mdl 32]} 21. Bxb7 {[%emt 0:03:30]} Nxb7 {[%emt 0:00:07]} 22. h3 {[%emt 0:23:12]} Nc5 {[%emt 0:12:42] [#] Inhibits Qa4.} ({But not} 22... Qxc3 23. Qa4 Qc8 24. Qxa7 $14) 23. Ng5 $146 {[%emt 0:10:08]} ({Predecessor:} 23. h4 b5 24. h5 a6 25. Bg5 Bf8 26. hxg6 hxg6 27. Bf6 Nd7 28. Qh4 Bg7 29. Ng5 {½-½ (66) Allemann,A (2241)-Gruenenwald,J (2366) Switzerland 2005}) 23... f6 24. Nf3 {[%emt 0:00:04]} f5 {[%emt 0:48:54]} 25. Qc4 {[%emt 0:00:31]} Qd7 {[%emt 0:00:50]} 26. Be3 {[%emt 0:04:12]} Qd1+ {[%emt 0:02:30]} 27. Kh2 {[%emt 0:00:18] Strongly threatening Bxc5.} Qd3 {[%emt 0:03:06]} 28. Qxd3 {[%emt 0:01:56]} Nxd3 $11 {[%emt 0:00:05][%mdl 4096] Endgame KBN-KBN} 29. Kg1 {[%emt 0:00:33]} Bd8 {[%emt 0:10:17]} (29... Bc5 $15) 30. Kf1 {[%emt 0:00:25]} Bc7 {[%emt 0:00:05]} 31. Bd4 {[%emt 0:00:32]} h6 {[%emt 0:01:47]} 32. h4 {[%emt 0:00:32]} a5 {[%emt 0:04:11]} 33. g3 {[%emt 0:00:33]} b5 {[%emt 0:00:23]} 34. a3 {[%emt 0:00:32]} Bd8 {[%emt 0:01:33]} (34... Nb2 $15) 35. Ke2 {[%emt 0:00:21]} Nb2 {[%emt 0:00:43]} 36. Nd2 {[%emt 0:00:39][%cal Oc3c4]} Be7 {[%emt 0:01:00]} 37. c4 $1 {[%emt 0:00:31]} Nxc4 {[%emt 0:00:11]} 38. Nxc4 {[%emt 0:00:26]} bxc4 $15 {[%emt 0:00:04] KB-KB} 39. a4 {[%emt 0:00:04]} Bb4 {[%emt 0:00:56] Prevents Bc3.} (39... Kf7 $17 {Hoping for ...Bb4.} 40. Bc3 Ke8 41. Bxa5 Kd7) 40. Bb6 $2 {[%emt 0:00:55][%mdl 8192] [#]} (40. Be3 $1 $11 {and White stays safe.}) 40... Bc3 $2 {[%emt 0:02:15]} (40... Kf7 $19 {White must now prevent ...Ke8.} 41. Ke3 Be1) 41. Be3 $1 {[%emt 0:13:34]} Bxe5 {[%emt 0:07:36] ...h5 is the strong threat.} 42. Bxh6 {[%emt 0:00:04]} Kf7 {[%emt 0:00:50]} 43. Bf4 $2 {[%emt 0:08:29][%mdl 8192]} (43. Kd1 $15) 43... Bd4 $2 {[%emt 0:06:45]} (43... Bxf4 $19 44. gxf4 Kf6) 44. Bc7 {[%emt 0:04:03]} Bc3 {[%emt 0:00:16]} 45. f3 {[%emt 0:00:52]} e5 {[%emt 0:04:00]} 46. g4 {[%emt 0:01:57]} Ke6 {[%emt 0:03:13]} 47. Bb6 {[%emt 0:01:01]} e4 {[%emt 0:00:56]} (47... Bb4 $5 {[%cal Re5e4]} 48. h5 gxh5 49. gxh5 f4 $17) 48. g5 $2 {[%emt 0:04:05][%mdl 8192]} (48. gxf5+ $17 Kxf5 49. Ke3) 48... exf3+ $19 {[%emt 0:01:37] Black is clearly winning.} 49. Kxf3 {[%emt 0:00:01]} Be1 {[%emt 0:00:11]} 50. Ke2 {[%emt 0:00:45]} Bxh4 {[%emt 0:00:12]} 51. Bxa5 {[%emt 0:00:04]} Bxg5 {[%emt 0:00:04]} 52. Bb6 {[%emt 0:00:20]} Kd5 {[%emt 0:00:14] Weighted Error Value: White=0.69/Black=0.44} 0-1

[Event "AUT Bundesliga Women 2021-22"]
[Site "Austria"]
[Date "2022.04.23"]
[Round "9.2"]
[White "Batyte, Daiva"]
[Black "Miturova, Magdalena"]
[Result "1/2-1/2"]
[ECO "A13"]
[WhiteElo "2105"]
[BlackElo "2210"]
[Annotator "TA"]
[PlyCount "62"]
[EventDate "2021.11.06"]
[EventType "team-tourn"]
[EventCountry "AUT"]
[SourceTitle "playchess.com"]
[Source "ChessBase"]
[SourceQuality "1"]
[TimeControl "40/5400+30:1800+30"]

{[%evp 9,62,-43,-54,-62,-10,-10,0,-20,27,0,28,0,0,0,0,0,29,34,18,18,31,26,19,17,31,2,0,0,6,0,4,0,-12,-40,0,0,0,0,14,8,8,0,0,0,0,0,0,0,8,-5,0,0,0,0,8]} 1. c4 {[%emt 0:00:03]} Nf6 {[%emt 0:00:11]} 2. g3 {[%emt 0:00:07]} e6 {[%emt 0:00:09]} 3. Bg2 {[%emt 0:00:25]} d5 {[%emt 0:00:12]} 4. Nf3 {[%emt 0:01:00]} dxc4 {[%emt 0:01:45]} 5. a4 {[%emt 0:00:38]} Nc6 {[%emt 0:03:41]} 6. Na3 {[%emt 0:12:48] A13: English Opening: 1...e6.} Na5 {[%emt 0:01:11]} ({Black should try} 6... Bxa3 $15 7. bxa3 e5) 7. O-O $11 {[%emt 0:01:15] [#]} Nd5 $146 {[%emt 0:03:12]} ({Predecessor:} 7... Qd5 8. Qc2 Bd6 9. Rd1 Nb3 10. Rb1 Bxa3 11. bxa3 Bd7 12. Bb2 Bxa4 13. Bxf6 gxf6 {½-½ (23) Neshkov,V (2186)-Terentiev,V (2301) Voronezh 2009}) 8. Ne5 {[%emt 0:02:56]} Nb6 {[%emt 0:04:32]} (8... Bxa3 $142 9. Rxa3 f6) 9. d3 {[%emt 0:06:00][%cal Ra3c4]} Nb3 {[%emt 0:01:24]} 10. Ra2 {[%emt 0:03:16]} (10. Rb1 {seems wilder.} Nxc1 11. Rxc1 Bxa3 12. bxa3 cxd3 13. a5) 10... Nxc1 {[%emt 0:01:03]} 11. Qxc1 {[%emt 0:02:49]} cxd3 {[%emt 0:01:38]} 12. Nxd3 {[%emt 0:04:51]} Bxa3 {[%emt 0:34:07]} 13. Rxa3 {[%emt 0:01:41]} O-O {[%emt 0:00:06]} 14. a5 {[%emt 0:03:57]} Nd5 {[%emt 0:01:29]} 15. Rd1 {[%emt 0:01:11]} c6 {[%emt 0:03:52]} 16. a6 {[%emt 0:06:46]} bxa6 {[%emt 0:03:12]} 17. Qxc6 {[%emt 0:06:05]} (17. Ne5 $5 {[%cal Re2e4]}) 17... Rb8 {[%emt 0:00:42]} 18. Qc1 {[%emt 0:09:34]} Qb6 {[%emt 0:01:07]} 19. e4 {[%emt 0:02:31]} Nb4 {[%emt 0:02:35]} 20. Nc5 {[%emt 0:02:05]} e5 {[%emt 0:01:14]} 21. h3 {[%emt 0:03:40] Prevents Bg4.} Be6 {[%emt 0:05:19]} 22. Nxe6 {[%emt 0:03:46] The position is equal.} Qxe6 {[%emt 0:01:23]} 23. Bf1 {[%emt 0:00:48]} Qb6 {[%emt 0:05:26]} 24. Qc3 {[%emt 0:01:55]} f6 {[%emt 0:02:57] [#]} 25. Bxa6 $1 {[%emt 0:00:52][%cal Od1d7][%mdl 64] Decoy} Nxa6 {[%emt 0:04:29]} (25... Kh8 26. Bc4) 26. Qc4+ {[%emt 0:00:26]} Kh8 {[%emt 0:00:35]} 27. Rxa6 {[%emt 0:01:33]} Qxb2 {[%emt 0:03:11]} 28. Rxa7 {[%emt 0:01:15]} Rbc8 {[%emt 0:01:01]} 29. Qe6 {[%emt 0:02:30] [#] Qg4 is the strong threat.} Rc1 {[%emt 0:00:45]} 30. Qd7 {[%emt 0:03:16][%csl Ga7][%cal Rd7g7]} Rxd1+ {[%emt 0:00:19]} 31. Qxd1 {[%emt 0:00:08]} Qb5 {[%emt 0:03:49] Weighted Error Value: White=0.08 (flawless) /Black=0.11 (very precise)} 1/2-1/2